bitfinex/quotes_ETHUSD_20250929
["timestamp","ask_amount","ask_price","bid_price","bid_amount"]
[1759165063426,21.15798896,4151.4,4151.3,0.002]
[1759165063852,21.15798896,4151.4,4150.1,0.2271]
[1759165063853,4.15311609,4150.9,4150.8,1e-08]
[1759165064043,16.49410676,4150.9,4150.8,1e-08]
[1759165064240,16.47007912,4150.9,4150.8,1e-08]
[1759165064423,17.17327912,4150.9,4150.8,1e-08]
[1759165065329,16.47007912,4150.9,4150.8,1e-08]
[1759165066063,16.47007912,4150.9,4150.8,0.22710001]
[1759165066552,9.96511609,4150.9,4150.8,1e-08]
[1759165066761,16.47007912,4150.9,4150.8,0.22710001]
[1759165067138,16.47007912,4150.9,4150.8,1e-08]
[1759165067534,23.45007912,4150.9,4150.8,1e-08]
[1759165067959,23.44807912,4150.9,4150.8,1e-08]
[1759165070363,25.25067233,4150.9,4150.8,1e-08]
[1759165070928,25.24867233,4150.9,4150.8,0.66100001]
[1759165071129,16.94111609,4150.9,4150.8,0.66100001]
[1759165071463,16.94011609,4150.9,4150.8,0.66100001]
[1759165071955,16.94011609,4150.9,4150.8,0.22710001]
[1759165072353,16.94011609,4150.9,4150.8,1e-08]
[1759165074730,20.92411609,4150.9,4150.8,1e-08]
[1759165074967,18.38711609,4150.9,4150.8,1e-08]
[1759165075332,19.09031609,4150.9,4150.8,1e-08]
[1759165075927,16.28331609,4150.9,4150.8,1e-08]
[1759165076134,12.12031609,4150.9,4150.8,1e-08]
[1759165077134,26.16137709,4150.9,4150.8,1e-08]
[1759165077336,21.86458109,4150.9,4150.8,1e-08]
[1759165077530,17.50088209,4150.9,4150.8,1e-08]
[1759165077762,17.74518209,4150.9,4150.8,1e-08]
[1759165080257,20.28218209,4150.9,4150.8,1e-08]
[1759165081265,20.28218209,4150.9,4150.0,1.01010101]
[1759165081266,4.15358049,4150.1,4150.0,1.01010101]
[1759165081450,9.99160813,4150.1,4150.0,1.01010101]
[1759165081652,9.96758049,4150.1,4150.0,1.23720101]
[1759165082190,9.96758049,4150.1,4150.0,1.01010101]
[1759165082360,7.15358049,4150.1,4150.0,1.01010101]
[1759165082555,9.96558049,4150.1,4150.0,1.23720101]
[1759165082950,9.96558049,4150.1,4150.0,1.67110101]
[1759165083153,6.36158049,4150.1,4150.0,1.67110101]
[1759165083351,9.17558049,4150.1,4150.0,1.67110101]
[1759165084984,9.29458049,4150.1,4150.0,1.67110101]
[1759165086657,10.08658049,4150.1,4150.0,1.01010101]
[1759165087594,9.29458049,4150.1,4150.0,1.67110101]
[1759165089647,6.48158049,4150.1,4150.0,1.67110101]
[1759165089890,9.29358049,4150.1,4150.0,1.67110101]
[1759165090598,9.29358049,4150.1,4150.0,1.23720101]
[1759165091283,9.17358049,4150.1,4150.0,1.71170101]
[1759165091482,9.17358049,4150.1,4150.0,1.25080101]
[1759165092076,9.17358049,4150.1,4150.0,1.01010101]
[1759165093884,9.17358049,4150.1,4150.0,1.72530101]
[1759165094082,6.36158049,4150.1,4150.0,1.72530101]
[1759165094284,9.17258049,4150.1,4150.0,1.72530101]
[1759165094490,9.17058049,4150.1,4150.0,1.72530101]
[1759165095765,9.29058049,4150.1,4150.0,1.72530101]
[1759165096493,9.17058049,4150.1,4150.0,1.24770101]
[1759165096908,9.17058049,4150.1,4150.0,1.70460101]
[1759165097407,3.952,4150.1,4150.0,1.70460101]
[1759165097590,9.17258049,4150.1,4150.0,1.70460101]
[1759165097989,6.763,4150.1,4150.0,1.70460101]
[1759165098291,3.952,4150.1,4150.0,1.70460101]
[1759165098517,9.19660813,4150.1,4150.0,1.70460101]
[1759165098797,6.763,4150.1,4150.0,1.70460101]
[1759165099092,5.81,4150.1,4150.0,1.70660101]
[1759165099293,6.762,4150.1,4150.0,1.70660101]
[1759165099893,9.17158049,4150.1,4150.0,1.70660101]
[1759165100062,6.762,4150.1,4150.0,1.70660101]
[1759165100265,5.809,4150.1,4150.0,1.70660101]
[1759165100465,6.761,4150.1,4150.0,1.70660101]
[1759165101665,3.0,4150.1,4150.0,1.70660101]
[1759165101871,5.808,4150.1,4150.0,2.13024119]
[1759165102399,5.808,4150.1,4150.0,1.70660101]
[1759165102601,9.16958049,4150.1,4150.0,1.70660101]
[1759165103399,6.36158049,4150.1,4150.0,1.01210101]
[1759165103580,9.16858049,4150.1,4150.0,1.01210101]
[1759165103966,9.16858049,4150.1,4150.0,1.24970101]
[1759165104167,3.0,4150.1,4150.0,1.70660101]
[1759165104372,6.759,4150.1,4150.0,1.70660101]
[1759165104599,6.758,4150.1,4150.0,1.70660101]
[1759165104781,5.806,4150.1,4150.0,1.70660101]
[1759165105182,6.758,4150.1,4150.0,1.70660101]
[1759165105383,5.806,4150.1,4150.0,1.70660101]
[1759165105701,3.758,4150.1,4150.0,10.43779282]
[1759165105879,3.758,4150.1,4150.0,12.84743137]
[1759165106485,3.758,4150.1,4150.0,10.43779282]
[1759165107504,3.758,4150.1,4150.0,2.13023658]
[1759165109324,3.758,4150.1,4150.0,1.01210101]
[1759165109474,6.16758049,4150.1,4150.0,1.01210101]
[1759165110782,3.758,4150.1,4150.0,1.01210101]
[1759165111194,3.78202764,4150.1,4150.0,1.01210101]
[1759165111526,6.19160813,4150.1,4150.0,1.01210101]
[1759165111818,6.16758049,4150.1,4150.0,1.01210101]
[1759165113418,6.88208049,4150.1,4150.0,1.01210101]
[1759165113989,6.16758049,4150.1,4150.0,1.01210101]
[1759165115121,6.16258049,4150.1,4150.0,1.70660101]
[1759165115421,6.16258049,4150.1,4150.0,1.01210101]
[1759165115616,3.753,4150.1,4150.0,1.01210101]
[1759165115820,3.752,4150.1,4150.0,1.24970101]
[1759165116123,3.751,4150.1,4150.0,1.70660101]
[1759165116715,3.751,4150.1,4150.0,1.24970101]
[1759165117594,3.751,4150.1,4150.0,10.01415725]
[1759165117919,3.751,4150.1,4150.0,12.4237958]
[1759165118094,2.799,4150.1,4150.0,10.75276691]
[1759165118295,2.799,4150.1,4150.0,2.44521067]
[1759165118296,3.751,4150.1,4150.0,2.44521067]
[1759165118500,3.751,4150.1,4150.0,1.70660101]
[1759165118726,3.75,4150.1,4150.0,1.70660101]
[1759165118905,3.952,4150.1,4150.0,1.01210101]
[1759165119111,9.16058049,4150.1,4150.0,1.01210101]
[1759165120401,9.83728049,4150.1,4150.0,1.01210101]
[1759165120796,9.16058049,4150.1,4150.0,1.01210101]
[1759165120996,9.83728049,4150.1,4150.0,1.01210101]
[1759165124134,10.62928049,4150.1,4150.0,1.01210101]
[1759165126237,17.60928049,4150.1,4150.0,1.01210101]
[1759165132312,24.12705095,4150.1,4150.0,1.01210101]
[1759165133718,24.12605095,4150.1,4150.0,1.01210101]
[1759165134625,17.60828049,4150.1,4150.0,1.01210101]
[1759165134923,14.13358049,4150.1,4150.0,1.01210101]
[1759165135243,16.13958049,4150.1,4150.0,1.69120101]
[1759165135615,13.73,4150.1,4150.0,1.69120101]
[1759165135845,16.13958049,4150.1,4150.0,1.69120101]
[1759165137347,12.778,4150.1,4150.0,1.69120101]
[1759165137511,13.73,4150.1,4150.0,1.69120101]
[1759165138340,10.932,4150.1,4150.0,1.69120101]
[1759165138645,13.73,4150.1,4150.0,1.69120101]
[1759165139230,13.85,4150.1,4150.0,1.69120101]
[1759165140951,8.052,4150.1,4150.0,9.27084971]
[1759165141157,10.85,4150.1,4150.0,9.27084971]
[1759165142123,10.85,4150.1,4150.0,2.75307925]
[1759165142451,13.25958049,4150.1,4150.0,1.01210101]
[1759165142826,13.25958049,4150.1,4150.0,1.23790101]
[1759165144729,10.85,4150.1,4150.0,1.23790101]
[1759165144948,13.25958049,4150.1,4150.0,1.23790101]
[1759165146232,13.25958049,4150.1,4150.0,1.69120101]
[1759165146556,8.052,4150.1,4150.0,1.69120101]
[1759165146852,10.85,4150.1,4150.0,1.69120101]
[1759165147027,13.25958049,4150.1,4150.0,1.69120101]
[1759165147226,10.85,4150.1,4150.0,1.69120101]
[1759165147857,13.25858049,4150.1,4150.0,1.69120101]
[1759165148357,13.25858049,4150.1,4150.0,1.23790101]
[1759165149671,10.849,4150.1,4150.0,1.67110101]
[1759165150306,13.25858049,4150.1,4150.0,1.67110101]
[1759165150644,13.25858049,4150.1,4150.0,1.23790101]
[1759165150958,10.849,4150.1,4150.0,1.67110101]
[1759165151159,13.25858049,4150.1,4150.0,1.67110101]
[1759165151955,10.849,4150.1,4150.0,1.67110101]
[1759165152131,13.25858049,4150.1,4150.0,1.67110101]
[1759165152754,10.849,4150.1,4150.0,1.67110101]
[1759165153159,13.25858049,4150.1,4150.0,1.67110101]
[1759165153359,8.052,4150.1,4150.0,1.67110101]
[1759165153549,10.849,4150.1,4150.0,1.67110101]
[1759165154260,13.25858049,4150.1,4150.0,1.67110101]
[1759165154563,10.849,4150.1,4150.0,1.67110101]
[1759165156557,13.25858049,4150.1,4150.0,1.67110101]
[1759165157076,10.849,4150.1,4150.0,1.01210101]
[1759165157246,10.849,4150.1,4150.0,1.70990101]
[1759165157974,13.25858049,4150.1,4150.0,1.70990101]
[1759165158179,10.849,4150.1,4150.0,1.70990101]
[1759165159680,8.052,4150.1,4150.0,1.70990101]
[1759165159858,10.849,4150.1,4150.0,1.70990101]
[1759165160247,10.46158049,4150.1,4150.0,1.70990101]
[1759165160458,13.25858049,4150.1,4150.0,1.70990101]
[1759165160760,10.849,4150.1,4150.0,1.70990101]
[1759165161475,13.25858049,4150.1,4150.0,1.70990101]
[1759165161647,10.849,4150.1,4150.0,1.70990101]
[1759165164478,8.052,4150.1,4150.0,7.52987147]
[1759165164676,10.848,4150.1,4150.0,7.52987147]
[1759165166260,10.848,4150.1,4150.0,7.76837147]
[1759165167284,10.848,4150.1,4150.0,7.52987147]
[1759165167997,10.848,4150.1,4150.0,8.22767147]
[1759165168290,7.1,4150.1,4150.0,9.29140938]
[1759165169351,7.1,4150.1,4150.0,8.22767147]
[1759165171500,7.1,4150.1,4150.0,1.01210101]
[1759165171666,7.1,4150.1,4150.0,7.76837147]
[1759165171868,7.1,4150.1,4150.0,8.22767147]
[1759165172497,7.1,4150.1,4150.0,1.70990101]
[1759165172792,7.1,4150.1,4150.0,7.76837147]
[1759165172995,7.1,4150.1,4150.0,8.22767147]
[1759165173193,0.12,4150.1,4150.0,9.57100822]
[1759165173393,3.748,4150.5,4150.1,2.40957169]
[1759165173660,3.748,4150.5,4150.4,6.51777046]
[1759165173817,0.12,4150.6,4150.4,7.21557046]
[1759165173974,0.12,4150.6,4150.5,0.89272824]
[1759165173975,0.952,4150.6,4150.5,0.89272824]
[1759165174172,0.952,4150.6,4150.5,1.59052824]
[1759165175484,0.001,4150.8,4150.7,2.40923217]
[1759165175694,0.001,4150.8,4150.7,6.51777046]
[1759165175895,0.001,4150.8,4150.7,7.21557046]
[1759165176287,0.001,4150.8,4150.4,9.43377046]
[1759165176488,0.001,4150.8,4150.6,0.2385]
[1759165176692,0.001,4150.8,4150.5,0.2385]
[1759165177294,0.001,4150.8,4150.6,0.2385]
[1759165177883,0.001,4150.8,4150.7,9.62480263]
[1759165179612,2.796,4151.3,4151.2,2.40894199]
[1759165179613,0.001,4151.3,4151.2,2.40894199]
[1759165179914,0.001,4151.3,4151.2,5.89944199]
[1759165180101,0.001,4151.3,4151.2,3.10444199]
[1759165180282,0.001,4151.3,4151.2,5.89944199]
[1759165181005,0.001,4151.3,4151.2,5.99606046]
[1759165181189,0.001,4151.3,4151.2,7.48834533]
[1759165183133,0.001,4151.3,4151.2,3.99784533]
[1759165183294,0.001,4151.3,4151.2,12.04673092]
[1759165183694,0.001,4151.3,4151.2,5.99506046]
[1759165183888,0.001,4151.3,4151.2,12.51283092]
[1759165189732,0.001,4151.3,4151.2,12.63283092]
[1759165194334,0.001,4151.3,4151.2,11.61604364]
[1759165194660,0.001,4151.3,4151.2,15.81154978]
[1759165195463,0.001,4151.8,4151.2,15.81154978]
[1759165195658,0.001,4151.8,4151.6,10.82369307]
[1759165195983,0.001,4151.8,4151.6,13.61669307]
[1759165196260,0.001,4151.8,4151.6,14.40879334]
[1759165196435,0.001,4151.8,4151.6,16.09055527]
[1759165197363,0.001,4151.8,4151.6,0.09660027]
[1759165197561,0.6888,4151.7,4151.6,2.793]
[1759165198150,3.09748091,4151.7,4151.3,0.09661848]
[1759165198346,0.6888,4151.7,4151.4,2.793]
[1759165198546,0.6878,4151.6,4151.4,2.793]
[1759165198752,0.6878,4151.5,4151.4,2.793]
[1759165199669,0.6878,4151.5,4151.3,0.09661848]
[1759165199871,0.6878,4151.5,4151.4,2.792]
[1759165200742,0.6878,4151.5,4151.4,5.20082593]
[1759165200946,0.001,4151.7,4151.4,2.792]
[1759165201149,0.6888,4151.7,4151.4,2.792]
[1759165201958,0.2405,4151.7,4151.4,5.20082218]
[1759165202152,0.6888,4151.7,4151.4,2.792]
[1759165202783,0.6878,4151.6,4151.4,2.792]
[1759165203435,0.6878,4151.6,4151.3,2.5054878]
[1759165203641,1.6398,4151.6,4151.3,0.09661848]
[1759165203969,0.6878,4151.5,4151.4,2.792]
[1759165205154,0.6878,4151.5,4151.0,0.72463855]
[1759165205155,0.6878,4151.5,4151.2,2.792]
[1759165205379,0.952,4151.6,4151.2,2.792]
[1759165205786,0.952,4151.6,4151.3,0.2294]
[1759165205992,0.952,4151.6,4151.4,5.20081726]
[1759165206404,0.952,4151.6,4151.5,1.21558173]
[1759165206601,0.001,4151.7,4151.6,2.40870989]
[1759165206772,0.001,4151.7,4151.6,5.89620989]
[1759165207513,0.001,4151.7,4151.6,6.01620989]
[1759165207969,0.001,4151.7,4151.6,3.22420989]
[1759165208169,0.001,4151.7,4151.6,7.53347674]
[1759165211896,0.001,4151.7,4151.6,7.06737674]
[1759165212100,0.001,4151.7,4151.6,7.53357674]
[1759165213971,0.001,4151.7,4151.6,4.74157674]
[1759165214293,0.001,4151.7,4151.6,7.53257674]
[1759165216904,0.001,4151.7,4151.6,4.37196978]
[1759165217074,0.001,4151.7,4151.6,7.18166978]
[1759165217280,0.001,4151.7,4151.6,7.61086978]
[1759165220403,0.001,4151.7,4151.6,10.61086978]
[1759165220802,1e-08,4151.9,4151.8,2.40859386]
[1759165221002,1e-08,4151.9,4151.8,10.61998522]
[1759165221211,1e-08,4151.9,4151.8,11.27319929]
[1759165221427,1e-08,4151.9,4151.8,11.36978231]
[1759165222913,1e-08,4151.9,4151.8,8.57978231]
[1759165223111,1e-08,4151.9,4151.8,4.90248231]
[1759165223312,1e-08,4151.9,4151.8,5.29517688]
[1759165224020,1e-08,4151.9,4151.8,5.97247688]
[1759165224614,1e-08,4151.9,4151.8,6.88447688]
[1759165224815,1e-08,4151.9,4151.8,9.88447688]
[1759165224980,1e-08,4151.9,4151.8,12.28178231]
[1759165227686,1e-08,4151.9,4151.8,17.78676549]
[1759165227886,1e-08,4151.9,4151.8,20.57676549]
[1759165229510,1e-08,4151.9,4151.8,20.57876549]
[1759165230946,1e-08,4151.9,4151.8,10.81348231]
[1759165232043,1e-08,4151.9,4151.8,11.06158231]
[1759165232244,1e-08,4151.9,4151.8,11.85358231]
[1759165232445,1e-08,4151.9,4151.8,11.73358231]
[1759165232935,1e-08,4151.9,4151.8,12.16278231]
[1759165233770,1e-08,4151.9,4151.8,18.98846549]
[1759165233940,1e-08,4151.9,4151.8,10.69348231]
[1759165234124,1e-08,4151.9,4151.8,18.98846549]
[1759165234525,1e-08,4151.9,4151.8,19.23656549]
[1759165234725,1e-08,4151.9,4151.8,18.98846549]
[1759165236928,1e-08,4151.9,4151.8,16.19946549]
[1759165237118,1e-08,4151.9,4151.8,18.98846549]
[1759165237648,1e-08,4151.9,4151.8,7.90448231]
[1759165237860,1e-08,4151.9,4151.8,10.69348231]
[1759165238865,1e-08,4151.9,4151.8,10.94158231]
[1759165239532,1e-08,4151.9,4151.8,10.69348231]
[1759165240743,1e-08,4151.9,4151.8,7.90448231]
[1759165240943,1e-08,4151.9,4151.8,10.69348231]
[1759165241281,1e-08,4151.9,4151.8,7.90448231]
[1759165241459,0.70230001,4151.9,4151.8,4.90448231]
[1759165241753,0.70230001,4151.9,4151.8,5.29517688]
[1759165242445,0.70230001,4151.9,4151.8,5.41517688]
[1759165243049,0.70230001,4151.9,4151.8,2.62717688]
[1759165243352,0.70230001,4151.9,4151.8,5.19859386]
[1759165243553,0.70230001,4151.9,4151.8,2.79]
[1759165243852,0.70230001,4151.9,4151.8,2.41059386]
[1759165244023,0.70230001,4151.9,4151.8,5.19859386]
[1759165245959,1e-08,4151.9,4151.8,5.19859386]
[1759165248661,0.70230001,4151.9,4151.8,5.19859386]
[1759165249136,0.70230001,4151.9,4151.8,2.41059386]
[1759165249336,0.70230001,4151.9,4151.8,5.19859386]
[1759165250538,0.70230001,4151.9,4151.8,2.41059386]
[1759165250766,0.70230001,4151.9,4151.8,5.19859386]
[1759165250947,1e-08,4151.9,4151.8,5.19859386]
[1759165253184,1e-08,4151.9,4151.8,5.31859386]
[1759165253389,1e-08,4151.9,4151.8,6.23145371]
[1759165253587,1e-08,4151.9,4151.8,15.20323689]
[1759165253886,1e-08,4151.9,4151.8,18.92761124]
[1759165254377,1e-08,4151.9,4151.8,24.43250398]
[1759165254759,0.001,4152.2,4151.9,3.792]
[1759165255082,0.001,4152.2,4152.1,12.82435779]
[1759165255438,0.001,4152.2,4152.1,13.50115779]
[1759165256846,0.001,4152.2,4152.1,6.99721983]
[1759165257046,0.001,4152.2,4152.1,15.84055779]
[1759165257372,0.001,4152.2,4152.1,16.28915779]
[1759165257681,0.001,4152.2,4152.1,18.68646322]
[1759165258181,0.001,4152.2,4152.1,15.89846322]
[1759165258367,0.001,4152.2,4152.1,18.23786322]
[1759165259054,0.001,4152.2,4152.1,7.92572526]
[1759165259255,0.001,4152.2,4152.1,8.31541983]
[1759165260872,0.001,4152.2,4152.1,14.81935779]
[1759165262143,0.001,4152.2,4152.1,12.03235779]
[1759165262348,0.7033,4152.2,4152.1,5.31541983]
[1759165262547,0.7033,4152.2,4152.1,2.52841983]
[1759165262848,0.7033,4152.2,4152.1,5.31541983]
[1759165263043,0.7033,4152.2,4152.1,0.12]
[1759165263572,0.7033,4152.2,4152.1,2.907]
[1759165264745,0.7033,4152.2,4152.1,0.12]
[1759165265375,0.7033,4152.2,4152.1,2.52841983]
[1759165265647,0.7033,4152.2,4152.1,0.12]
[1759165265857,0.7033,4152.2,4152.1,2.52841983]
[1759165266087,0.7033,4152.2,4152.1,0.12]
[1759165266372,0.7033,4152.2,4152.1,2.52841983]
[1759165267958,0.7033,4152.2,4152.1,0.12]
[1759165268161,0.7033,4152.2,4152.1,2.907]
[1759165268591,0.7033,4152.2,4152.1,0.12]
[1759165269966,0.7033,4152.2,4152.1,2.52841983]
[1759165271068,0.7033,4152.2,4152.1,0.12]
[1759165271397,0.7033,4152.2,4151.8,0.002]
[1759165271398,0.952,4151.9,4151.8,0.002]
[1759165271898,1.6341,4151.9,4151.8,0.002]
[1759165274314,7.06666349,4151.9,4151.8,0.002]
[1759165274598,7.04263585,4151.9,4151.8,0.002]
[1759165275508,16.33257381,4151.9,4151.8,0.002]
[1759165276182,4.6341,4151.9,4151.8,0.002]
[1759165276382,16.33257381,4151.9,4151.8,0.002]
[1759165277580,13.92403796,4151.9,4151.8,0.002]
[1759165277801,16.33257381,4151.9,4151.8,0.002]
[1759165278107,13.54657381,4151.9,4151.8,0.002]
[1759165278283,7.04263585,4151.9,4151.8,0.002]
[1759165278487,9.82963585,4151.9,4151.8,0.002]
[1759165283707,10.62163585,4151.9,4151.8,0.002]
[1759165284904,13.16363585,4151.9,4151.8,0.002]
[1759165285109,10.62163585,4151.9,4151.8,0.002]
[1759165285721,1.744,4151.4,4151.3,0.002]
[1759165286013,31.47361455,4151.4,4151.3,0.002]
[1759165286216,32.16631455,4151.4,4151.3,0.002]
[1759165289634,35.30965855,4151.4,4151.3,0.002]
[1759165290118,32.16631455,4151.4,4151.3,0.002]
[1759165291023,39.14631455,4151.4,4151.3,0.002]
[1759165291719,51.85499955,4151.4,4151.3,0.002]
[1759165291920,47.72105255,4151.4,4151.3,0.002]
[1759165292215,46.72105255,4151.4,4151.3,0.002]
[1759165292416,45.15905255,4151.4,4151.3,0.002]
[1759165292617,39.14631455,4151.4,4151.3,0.002]
[1759165294404,39.14731455,4151.4,4151.3,0.002]
[1759165298222,53.62845931,4151.4,4151.3,0.002]
[1759165298395,25.57709831,4151.4,4151.3,0.002]
[1759165298794,32.03425931,4151.4,4151.3,0.002]
[1759165299323,41.70746631,4151.4,4151.3,0.002]
[1759165299896,38.54876331,4151.4,4151.3,0.002]
[1759165300309,41.70746631,4151.4,4151.3,0.002]
[1759165300528,40.75667931,4151.4,4151.3,0.002]
[1759165300695,46.19925169,4151.4,4151.3,0.002]
[1759165301129,44.37409469,4151.4,4151.3,0.002]
[1759165301429,45.81678269,4151.4,4151.3,0.002]
[1759165302329,46.84098269,4151.4,4151.3,0.002]
[1759165303231,44.14498769,4151.4,4151.3,0.002]
[1759165303527,43.55736169,4151.4,4151.3,0.002]
[1759165303727,37.04078931,4151.4,4151.3,0.002]
[1759165304432,37.06989331,4151.4,4151.3,0.002]
[1759165304638,43.58646569,4151.4,4151.3,0.002]
[1759165305517,46.39129469,4151.4,4151.3,0.002]
[1759165306244,44.16779469,4151.4,4151.3,0.002]
[1759165306438,32.09367069,4151.4,4151.3,0.002]
[1759165306614,44.64079469,4151.4,4151.3,0.002]
[1759165307450,32.09367069,4151.4,4151.3,0.002]
[1759165307649,44.64079469,4151.4,4151.3,0.002]
[1759165308522,44.72881469,4151.4,4151.3,0.002]
[1759165308949,43.00731669,4151.4,4151.3,0.002]
[1759165309250,41.91493069,4151.4,4151.3,0.002]
[1759165309428,35.39835831,4151.4,4151.3,0.002]
[1759165309627,36.03586031,4151.4,4151.3,0.002]
[1759165309943,28.51173631,4151.4,4151.3,0.002]
[1759165310151,29.40902331,4151.4,4151.3,0.002]
[1759165310359,30.10052331,4151.4,4151.3,0.002]
[1759165310646,36.61709569,4151.4,4151.3,0.002]
[1759165310819,30.10052331,4151.4,4151.3,0.002]
[1759165311020,38.22776631,4151.4,4151.3,0.002]
[1759165311243,24.88339831,4151.4,4151.3,0.002]
[1759165311521,27.62499331,4151.4,4151.3,0.002]
[1759165311743,24.88339831,4151.4,4151.3,0.002]
[1759165311944,27.70090531,4151.4,4151.3,0.002]
[1759165312252,34.38458231,4151.4,4151.3,0.002]
[1759165312444,34.62258231,4151.4,4151.3,0.002]
[1759165312749,35.07608231,4151.4,4151.3,0.002]
[1759165313151,48.03863469,4151.4,4151.3,0.002]
[1759165313343,46.03041369,4151.4,4151.3,0.002]
[1759165313724,42.11979069,4151.4,4151.3,0.002]
[1759165313954,41.83311769,4151.4,4151.3,0.002]
[1759165314160,45.23311769,4151.4,4151.3,0.002]
[1759165314455,40.50797526,4151.4,4151.3,0.002]
[1759165315355,37.10797526,4151.4,4151.3,0.002]
[1759165315551,34.80000226,4151.4,4151.3,0.002]
[1759165316157,37.64197926,4151.4,4151.3,0.002]
[1759165316751,33.68558126,4151.4,4151.3,0.002]
[1759165317256,38.91026926,4151.4,4151.3,0.002]
[1759165317460,41.45226926,4151.4,4151.3,0.002]
[1759165318355,46.03869626,4151.4,4151.3,0.002]
[1759165319363,46.03869626,4151.4,4150.9,0.002]
[1759165319364,12.46106038,4151.0,4150.9,0.002]
[1759165319567,25.22606038,4151.0,4150.9,0.002]
[1759165320855,25.22606038,4151.0,4150.9,0.2469]
[1759165321169,25.22606038,4151.0,4150.9,0.6986]
[1759165321366,25.22606038,4151.0,4150.9,0.2469]
[1759165321669,25.22606038,4151.0,4150.9,0.002]
[1759165323967,25.22606038,4151.0,4150.9,0.2469]
[1759165324550,25.22606038,4151.0,4150.8,1e-08]
[1759165324551,7.76911609,4150.9,4150.8,1e-08]
[1759165324767,11.24561609,4150.9,4150.8,1e-08]
[1759165324966,10.55411609,4150.9,4150.8,1e-08]
[1759165325344,13.09611609,4150.9,4150.8,1e-08]
[1759165326749,24.18620509,4150.9,4150.8,1e-08]
[1759165326955,0.952,4148.5,4147.6,1.05015836]
[1759165327147,10.05200233,4148.5,4148.4,1.73340591]
[1759165327341,3.952,4148.5,4148.4,1.73340591]
[1759165327661,3.952,4148.5,4148.4,1.9067465]
[1759165327662,3.736,4148.5,4148.4,1.9067465]
[1759165328176,6.14650982,4148.5,4148.4,1.9067465]
[1759165328343,3.736,4148.5,4148.4,1.9067465]
[1759165328774,6.17053746,4148.5,4148.4,1.9067465]
[1759165328950,6.14650982,4148.5,4148.4,1.73340591]
[1759165329351,9.14650982,4148.5,4148.4,1.73340591]
[1759165329582,9.14650982,4148.5,4148.4,1.28170591]
[1759165329878,9.93850982,4148.5,4148.4,1.03680591]
[1759165330280,10.66397373,4148.5,4148.4,1.03680591]
[1759165330947,10.66497373,4148.5,4148.4,1.03680591]
[1759165331148,7.08797373,4148.5,4148.4,1.03680591]
[1759165331349,17.45651215,4148.5,4148.4,1.03680591]
[1759165331648,18.24851215,4148.5,4148.4,1.71810591]
[1759165331951,6.738,4148.5,4148.4,1.71810591]
[1759165332265,9.14850982,4148.5,4148.4,1.71810591]
[1759165332574,6.738,4148.5,4148.4,1.71810591]
[1759165332778,18.24851215,4148.5,4148.4,1.03680591]
[1759165332980,18.24851215,4148.5,4148.4,1.28340591]
[1759165333368,18.24851215,4148.5,4148.4,1.03680591]
[1759165333870,18.24851215,4148.5,4148.4,1.28340591]
[1759165334058,15.46251215,4148.5,4148.4,1.28340591]
[1759165334260,18.25351215,4148.5,4148.4,1.28340591]
[1759165335385,18.25351215,4148.5,4148.4,1.03680591]
[1759165337783,18.48091215,4148.5,4148.4,1.03680591]
[1759165337988,18.93981215,4148.5,4148.4,1.03680591]
[1759165338282,18.25351215,4148.5,4148.4,1.03680591]
[1759165338483,25.83578115,4148.5,4148.4,1.03680591]
[1759165338782,24.81384415,4148.5,4148.4,1.03680591]
[1759165339183,25.91981215,4148.5,4148.4,1.03680591]
[1759165339372,5.60297475,4147.7,4147.6,1e-08]
[1759165339560,1.744,4146.8,4146.5,0.7031]
[1759165339768,18.25550035,4146.8,4146.5,0.7031]
[1759165340084,15.46350035,4146.8,4146.5,0.7031]
[1759165340394,13.05200233,4146.8,4146.7,1.7666108]
[1759165340695,15.46350035,4146.8,4146.7,1.7666108]
[1759165340855,3.952,4146.8,4146.7,1.7666108]
[1759165341059,6.744,4146.8,4146.7,1.7666108]
[1759165341262,9.15549802,4146.8,4146.7,1.7666108]
[1759165341452,9.15549802,4146.8,4146.7,1.94327188]
[1759165341453,0.952,4146.8,4146.7,1.94327188]
[1759165341889,3.746,4146.8,4146.7,1.94327188]
[1759165342805,3.746,4146.8,4146.7,1.7666108]
[1759165343018,0.952,4146.8,4146.7,1.7666108]
[1759165343182,3.746,4146.8,4146.7,1.7666108]
[1759165343678,3.0,4147.9,4146.7,1.7666108]
[1759165343880,0.952,4147.0,4146.9,2.41143794]
[1759165344083,0.952,4147.0,4146.9,3.77590916]
[1759165344706,0.952,4147.0,4146.9,3.77591109]
[1759165344882,0.952,4147.0,4146.9,1.36447122]
[1759165345209,0.952,4147.0,4146.9,0.247]
[1759165345210,3.38740936,4147.0,4146.9,0.247]
[1759165345414,0.97602764,4147.0,4146.9,0.247]
[1759165345595,2.41149802,4146.8,4146.7,1.0635108]
[1759165345797,5.23152566,4146.8,4146.7,1.0635108]
[1759165346112,8.99949802,4146.8,4146.7,1.0635108]
[1759165346279,9.22689802,4146.8,4146.7,1.0635108]
[1759165346485,9.68579802,4146.8,4146.7,1.0635108]
[1759165346892,8.99949802,4146.8,4146.7,1.0635108]
[1759165348394,9.45839802,4146.8,4146.7,1.0635108]
[1759165348699,17.99380035,4146.8,4146.7,1.0635108]
[1759165349213,8.99949802,4146.8,4146.7,1.0635108]
[1759165349389,10.63779802,4146.8,4146.7,1.0635108]
[1759165349591,7.15549802,4146.8,4146.7,1.0635108]
[1759165349907,9.95049802,4146.8,4146.7,1.0635108]
[1759165350795,10.63679802,4146.8,4146.7,1.0635108]
[1759165352329,28.21516602,4146.8,4146.7,1.0635108]
[1759165353190,19.53686117,4146.7,4146.6,0.002]
[1759165353819,24.0122057,4146.7,4146.6,0.002]
[1759165354811,9.98762537,4146.7,4146.6,0.002]
[1759165355011,20.2521277,4146.7,4146.6,0.002]
[1759165355195,21.8904277,4146.7,4146.6,0.002]
[1759165355398,24.9641407,4146.7,4146.6,0.002]
[1759165356323,24.9641407,4146.7,4145.3,0.7031]